bitfinex/quotes_ETHUSD_20220226
["timestamp","ask_amount","ask_price","bid_price","bid_amount"]
[1645906352257,0.83854,2815.8,2815.4,0.00516004]
[1645906353261,0.83854,2815.8,2815.1,0.66819185]
[1645906353462,0.83854,2815.8,2815.5,0.0051599]
[1645906354464,0.83854,2815.8,2815.1,0.66819185]
[1645906354667,0.83854,2815.8,2815.5,0.00515984]
[1645906355705,0.83854,2815.8,2815.1,0.66819185]
[1645906355906,0.83854,2815.8,2815.5,0.00515984]
[1645906356706,0.83854,2815.8,2815.1,0.6716983]
[1645906356906,0.83854,2815.8,2815.0,0.66819185]
[1645906357105,0.83854,2815.8,2815.5,0.00515984]
[1645906357911,0.83854,2815.8,2815.1,0.66819185]
[1645906358312,0.83854,2815.8,2815.5,0.00515984]
[1645906359254,0.83854,2815.8,2815.1,0.66819185]
[1645906359453,0.83854,2815.8,2815.5,0.00515984]
[1645906360456,0.83854,2815.8,2815.1,0.66819185]
[1645906360657,0.83854,2815.8,2815.5,0.00515984]
[1645906361661,0.83854,2815.8,2815.1,0.66819185]
[1645906361956,0.83854,2815.8,2815.5,0.00515984]
[1645906362831,0.83854,2815.8,2815.2,0.66819185]
[1645906363130,0.83854,2815.8,2815.5,0.00515984]
[1645906363929,0.83854,2815.8,2815.2,0.66819185]
[1645906364234,0.83854,2815.8,2815.5,0.00515984]
[1645906364429,0.83854,2815.8,2815.1,0.62335169]
[1645906364631,0.07505669,2815.7,2815.1,0.62335169]
[1645906365538,0.07505669,2815.7,2815.2,1.43308619]
[1645906365735,0.07505669,2815.7,2815.3,1.43308619]
[1645906365942,0.07505669,2815.7,2814.9,0.00350645]
[1645906365943,0.07505669,2815.7,2815.4,1.43308619]
[1645906366187,0.42985669,2815.7,2815.5,1.43308619]
[1645906366380,0.07505669,2815.6,2814.9,1.43659264]
[1645906366582,0.3548,2815.3,2815.0,1.43308619]
[1645906366789,0.07505669,2815.2,2815.1,1.43308619]
[1645906368285,0.07505669,2815.2,2815.1,1.41758968]
[1645906368487,0.07505669,2815.2,2814.9,1.41756842]
[1645906368687,1.31864669,2815.2,2814.8,0.1419]
[1645906368987,0.07505669,2815.1,2814.8,0.1419]
[1645906369186,0.07505669,2815.1,2814.9,1.42218521]
[1645906369393,0.07505669,2815.1,2815.0,1.41702427]
[1645906369587,0.07505669,2815.1,2814.9,0.00516063]
[1645906369785,0.07505669,2815.1,2815.0,1.41703863]
[1645906370024,0.07505669,2815.1,2815.0,1.41703409]
[1645906370223,0.07505669,2815.1,2815.0,1.41657012]
[1645906370425,0.07505669,2815.1,2814.9,1.42173054]
[1645906370625,0.07505669,2815.1,2815.0,1.41656729]
[1645906370824,0.07505669,2815.1,2814.9,0.00516069]
[1645906371225,0.07505669,2815.1,2815.0,1.41619994]
[1645906371427,0.07505669,2815.1,2815.0,1.41617124]
[1645906371625,0.07505669,2815.1,2814.9,0.00516069]
[1645906371824,0.07505669,2815.1,2815.0,1.41617333]
[1645906372029,0.07505669,2815.1,2814.9,0.00516069]
[1645906372426,0.07505669,2815.1,2814.8,0.1419]
[1645906372630,0.07505669,2815.1,2814.9,0.00516069]
[1645906373231,0.07505669,2815.1,2815.0,1.41552829]
[1645906373431,0.07505669,2815.1,2814.9,0.00516069]
[1645906373667,0.07505669,2815.1,2814.8,0.1419]
[1645906373855,0.07505669,2815.1,2814.9,0.00516063]
[1645906374055,0.07505669,2815.1,2815.0,1.41534368]
[1645906374255,0.07505669,2815.1,2815.0,1.41534233]
[1645906374456,0.07505669,2815.1,2815.0,1.41534456]
[1645906374764,0.07505669,2815.1,2814.8,0.1419]
[1645906375156,0.07505669,2815.1,2814.9,1.4203097]
[1645906375355,0.07505669,2815.1,2814.9,0.00516063]
[1645906375557,0.07505669,2815.1,2814.9,0.00436063]
[1645906376156,0.07505669,2815.1,2814.8,0.1419]
[1645906376457,0.07505669,2815.1,2814.9,1.4149435]
[1645906376858,0.07505669,2815.1,2814.8,0.1419]
[1645906377057,1.31871669,2815.1,2814.8,0.1419]
[1645906377264,0.07505669,2815.0,2814.8,0.1419]
[1645906377509,0.88886,2814.9,2814.8,0.14706076]
[1645906377709,0.96391669,2814.9,2814.8,0.14706076]
[1645906377910,0.96391669,2814.9,2814.8,1.56171714]
[1645906378310,0.96391669,2814.9,2814.8,1.41981714]
[1645906378513,0.96391669,2814.9,2814.8,1.41465638]
[1645906379312,0.96391669,2814.9,2814.7,0.00516089]
[1645906379512,0.07505669,2814.8,2814.7,0.00516089]
[1645906379713,0.07505669,2814.8,2814.4,0.00350645]
[1645906380019,0.07505669,2814.8,2814.7,1.41928126]
[1645906380815,0.07505669,2814.8,2814.7,1.4141203]
[1645906381251,0.07505669,2814.8,2814.6,0.00516102]
[1645906381453,0.07505669,2814.8,2814.7,1.4141203]
[1645906382253,0.07505669,2814.8,2814.6,0.00516102]
[1645906382456,0.07505669,2814.8,2814.7,1.4141203]
[1645906383058,0.07505669,2814.8,2814.7,1.41379367]
[1645906384661,0.07505669,2814.8,2814.6,0.00516102]
[1645906384922,0.88875,2815.1,2814.7,1.41379367]
[1645906385118,0.07975377,2815.0,2814.7,1.41379367]
[1645906385618,0.07975377,2815.0,2814.6,0.00516102]
[1645906385820,0.07975377,2815.0,2814.7,0.00516089]
[1645906386822,0.07975377,2815.0,2814.3,0.39550356]
[1645906387023,0.07975377,2815.0,2814.7,0.00516089]
[1645906388029,0.07975377,2815.0,2814.3,0.00350645]
[1645906388226,0.07975377,2815.0,2814.7,0.00516089]
[1645906389253,0.07975377,2815.0,2814.3,0.39550356]
[1645906389454,0.07975377,2815.0,2814.7,0.00516089]
[1645906390358,0.07975377,2815.0,2814.3,0.41615022]
[1645906390561,0.07975377,2815.0,2814.4,1.40129913]
[1645906390759,0.07975377,2815.0,2814.7,0.00516089]
[1645906390961,0.98,2815.5,2814.9,6.5]
[1645906391162,1.33682563,2816.1,2815.0,3.5]
[1645906391163,1.55856483,2816.1,2815.0,3.5]
[1645906391364,0.66717622,2816.2,2815.0,3.8548]
[1645906391560,1.16717622,2816.3,2815.7,1.33918931]
[1645906391759,0.66717622,2816.3,2815.3,0.9516]
[1645906391958,0.66717622,2816.3,2815.4,3.5]
[1645906393317,1.87977622,2816.4,2815.7,1.19915192]
[1645906393517,0.66717622,2816.4,2815.8,3.5]
[1645906393915,0.66717622,2816.4,2815.7,1.19915192]
[1645906395116,0.66717622,2816.4,2815.8,3.5]
[1645906395318,0.66717622,2816.4,2815.7,1.19915192]
[1645906395720,0.66717622,2816.4,2815.7,1.05408238]
[1645906395917,0.66717622,2816.3,2815.7,1.05408238]
[1645906396354,0.66717622,2816.4,2815.7,1.05408238]
[1645906398058,0.66717622,2816.4,2815.7,1.40888238]
[1645906398272,0.01944614,2816.6,2815.9,0.3548]
[1645906398273,0.68662236,2816.6,2815.9,0.3548]
[1645906398464,0.01944614,2816.6,2816.1,0.3548]
[1645906398660,0.01944614,2816.6,2816.3,0.3548]
[1645906398858,0.00368138,2816.9,2816.4,2.88622052]
[1645906399059,0.66717622,2817.1,2816.8,1.31948827]
[1645906399263,0.01944614,2816.9,2816.8,1.2177]
[1645906400110,0.66717622,2817.1,2816.8,1.2177]
[1645906400312,0.66717622,2817.1,2816.7,1.36366269]
[1645906400516,0.67197027,2817.1,2816.7,1.36366269]
[1645906400919,0.00479405,2817.1,2816.7,1.36366269]
[1645906401214,0.66717622,2817.1,2816.7,1.36366269]
[1645906401614,0.67109974,2817.1,2816.7,1.36366269]
[1645906401815,0.00392352,2817.1,2816.7,1.36366269]
[1645906402415,0.66717622,2817.2,2816.7,1.36366269]
[1645906402818,0.00392352,2817.1,2816.7,1.36366269]
[1645906403664,0.66717622,2817.2,2816.7,1.36366269]
[1645906403857,0.00392352,2817.1,2816.7,1.36366269]
[1645906404356,0.00392352,2817.1,2816.3,1.1548]
[1645906404557,0.67478112,2817.1,2816.3,1.1548]
[1645906404759,0.00392352,2817.1,2816.3,0.8548]
[1645906404959,0.00368138,2817.1,2816.3,0.8548]
[1645906405159,0.00392324,2817.1,2816.3,0.8548]
[1645906405359,0.00760462,2817.1,2816.5,1.11048992]
[1645906405661,0.00392324,2817.1,2816.5,1.11048992]
[1645906406065,0.66717622,2817.2,2816.5,1.11048992]
[1645906406263,0.00408503,2817.1,2816.5,1.11048992]
[1645906406661,0.00408503,2817.1,2816.2,4.2121]
[1645906406863,0.00408503,2817.1,2816.2,3.2121]
[1645906407059,0.00408503,2817.1,2816.2,4.2121]
[1645906407260,0.66717622,2817.2,2816.2,4.2121]
[1645906407514,0.00776619,2817.1,2816.2,3.2121]
[1645906407711,0.00776619,2817.1,2816.2,2.2121]
[1645906407911,0.00776619,2817.1,2816.2,3.2121]
[1645906408512,0.00368138,2817.1,2816.2,3.2121]
[1645906408717,0.00776619,2817.1,2816.2,3.2121]
[1645906409111,0.00776619,2817.1,2816.2,2.2121]
[1645906409712,0.00368138,2817.1,2816.2,2.2121]
[1645906409913,0.00406142,2817.1,2816.2,2.2121]
[1645906410813,0.00368138,2817.2,2816.2,2.2121]
[1645906411013,0.00368138,2817.2,2816.5,1.35557141]
[1645906411263,0.00406142,2817.1,2816.5,1.35557141]
[1645906411460,0.1085618,2817.0,2816.5,1.35557141]
[1645906411657,0.1085618,2817.0,2816.5,1.71037141]
[1645906412258,0.11224318,2817.3,2816.5,2.01037141]
[1645906412463,0.00406156,2817.1,2816.5,3.03407141]
[1645906412861,0.00406156,2817.1,2816.5,2.6785]
[1645906412862,0.1085618,2817.0,2816.5,2.6785]
[1645906413062,0.1085618,2817.0,2816.5,1.6785]
[1645906413261,0.1085618,2817.0,2816.5,2.6785]
[1645906413463,0.1085618,2816.9,2816.5,1.6785]
[1645906413664,0.00406299,2817.1,2816.5,1.6548]
[1645906413866,0.10843142,2817.0,2816.5,1.6548]
[1645906414663,0.00406299,2817.1,2816.6,1.0]
[1645906414927,0.10844448,2817.0,2816.6,1.3548]
[1645906415318,0.00406299,2817.1,2816.6,1.3548]
[1645906415718,0.06700399,2817.6,2816.6,1.3548]
[1645906415917,0.00406313,2817.1,2816.6,0.3548]
[1645906416524,0.1084938,2817.0,2816.6,0.30252087]
[1645906416819,0.1084938,2817.0,2816.5,1.6548]
[1645906417017,0.00482315,2817.1,2816.5,1.6548]
[1645906417219,0.10749958,2817.0,2816.8,1.24505826]
[1645906417623,0.10749958,2817.0,2816.8,1.54505826]
[1645906418221,0.06700399,2817.6,2816.8,1.54505826]
[1645906418422,0.00482315,2817.1,2816.8,1.54505826]
[1645906418682,0.00482315,2817.1,2816.8,2.28665826]
[1645906418870,0.00482315,2817.1,2817.0,0.3548]
[1645906419077,0.00482315,2817.1,2817.0,10.1488]
[1645906419267,0.00368138,2817.8,2817.1,0.25561966]
[1645906419467,0.11107554,2817.9,2817.2,8.3415731]
[1645906419769,0.01928935,2817.6,2817.3,1.0]
[1645906419967,0.01928935,2817.6,2817.4,8.14452933]
[1645906420368,0.01928935,2817.6,2817.4,9.14452933]
[1645906420570,0.00368138,2817.8,2817.4,9.44452933]
[1645906420769,0.00482252,2817.6,2817.4,9.44452933]
[1645906421170,0.00482252,2817.6,2817.4,9.58642933]
[1645906421871,0.0048147,2817.6,2817.4,9.58642933]
[1645906422073,0.0048147,2817.6,2817.5,0.1419]
[1645906422272,0.0048147,2817.6,2817.5,7.2404]
[1645906422730,0.0048147,2817.6,2817.5,8.2404]
[1645906422928,0.5,2818.0,2817.5,8.2404]
[1645906423131,0.00481464,2817.7,2817.5,8.2404]
[1645906424136,0.5,2818.0,2817.5,8.2404]
[1645906424332,0.5,2818.0,2817.8,0.3]
[1645906424533,0.5,2818.0,2817.5,8.5404]
[1645906425336,0.5,2818.0,2817.5,9.94244614]
[1645906425632,0.00395337,2817.9,2817.5,9.94244614]
[1645906425837,0.00395337,2817.9,2817.5,9.80054614]
[1645906426461,0.5,2818.0,2817.5,9.80054614]
[1645906426864,0.00395337,2817.8,2817.5,9.80054614]
[1645906427765,0.5,2818.0,2817.5,9.80054614]
[1645906427968,0.00395337,2817.8,2817.5,9.80054614]
[1645906428867,0.5,2818.0,2817.5,9.80054614]
[1645906429170,0.00407877,2817.8,2817.5,9.80054614]
[1645906429465,0.00407877,2817.8,2817.5,9.94244614]
[1645906430218,0.5,2818.0,2817.5,9.94244614]
[1645906430515,0.00407877,2817.8,2817.5,9.94244614]
[1645906431320,0.5,2818.0,2817.5,9.94244614]
[1645906431517,0.00407877,2817.8,2817.5,9.94244614]
[1645906432419,0.5,2818.0,2817.5,9.94244614]
[1645906432828,0.00406067,2817.8,2817.5,9.94244614]
[1645906433665,0.5,2818.0,2817.5,10.82990614]
[1645906433967,0.00406067,2817.8,2817.6,1.8874573]
[1645906434166,0.5,2818.0,2817.7,7.098]
[1645906434167,0.45406067,2818.0,2817.7,7.098]
[1645906434567,0.45406067,2818.0,2817.7,8.098]
[1645906436166,0.45406067,2818.0,2817.7,9.098]
[1645906436465,0.45812413,2818.0,2817.7,9.098]
[1645906437067,0.45812413,2818.0,2817.7,9.2399]
[1645906437270,0.45406067,2818.0,2817.7,9.2399]
[1645906437515,0.45812413,2818.0,2817.7,9.2399]
[1645906438116,0.45812413,2818.0,2817.7,7.88091608]
[1645906438521,0.00368138,2818.6,2817.9,0.58198441]
[1645906438722,0.01625142,2818.4,2818.2,0.3548]
[1645906438924,0.01625142,2818.4,2818.3,6.8648]
[1645906439116,0.01625142,2818.4,2818.3,15.7320173]
[1645906439318,0.01625142,2818.4,2818.3,18.0320173]
[1645906439521,0.01625142,2818.4,2818.3,19.24369513]
[1645906439716,0.00368138,2819.5,2818.3,19.24369513]
[1645906439717,0.5,2818.5,2818.3,19.24369513]
[1645906439916,0.5,2818.5,2818.4,0.1419]
[1645906440119,0.00368138,2819.5,2819.1,1.28992175]
[1645906440322,0.08320478,2819.5,2819.1,1.28992175]
[1645906440519,0.08320478,2819.4,2819.0,0.3]
[1645906440723,0.08320478,2819.4,2818.8,1.0]
[1645906440724,0.08320478,2819.3,2818.8,1.0]
[1645906441028,0.43800478,2819.2,2818.3,8.4555]
[1645906441267,0.3548,2819.0,2818.3,8.4555]
[1645906441568,0.3548,2818.8,2818.3,8.4555]
[1645906441766,0.08320478,2818.7,2818.3,8.4555]
[1645906443671,0.00484196,2818.6,2818.3,8.4555]
[1645906443869,0.08320478,2818.5,2818.3,8.4555]
[1645906444670,0.08320478,2818.4,2818.3,8.4555]
[1645906445108,0.00393084,2818.5,2818.3,8.4555]
[1645906445710,0.08320478,2818.7,2818.3,8.4555]
[1645906445912,0.00393084,2818.5,2818.3,8.4555]
[1645906446911,0.03320478,2818.7,2818.3,8.4555]
[1645906447109,0.00393084,2818.5,2818.3,8.4555]
[1645906448115,0.03320478,2818.7,2818.3,8.4555]
[1645906448517,0.00393084,2818.5,2818.3,8.4555]
[1645906449367,0.03320478,2818.7,2818.3,8.4555]
[1645906449669,0.00404502,2818.5,2818.3,8.4555]
[1645906450568,0.3548,2818.6,2818.3,8.4555]
[1645906451967,1.24244,2818.6,2818.3,8.4555]
[1645906453224,1.24727996,2818.6,2818.3,8.4555]
[1645906454324,1.24636944,2818.6,2818.3,8.4555]
[1645906454727,1.91354566,2818.6,2818.3,8.4555]
[1645906454926,1.02590566,2818.6,2818.3,8.4555]
[1645906455130,0.67110566,2818.6,2818.3,8.4555]
[1645906455336,0.66717622,2818.6,2818.3,8.4555]
[1645906455531,0.67110566,2818.6,2818.3,8.4555]
[1645906456031,0.66717622,2818.5,2818.3,8.4555]
[1645906456878,0.67110566,2818.5,2818.3,8.4555]
[1645906457280,0.66717622,2818.4,2818.3,8.4555]
[1645906458278,0.67110566,2818.5,2818.3,7.32913437]
[1645906458678,0.00392944,2818.5,2818.3,7.32913437]
[1645906458881,0.66717622,2818.5,2818.3,7.32913437]
[1645906459280,0.00406248,2818.5,2818.3,7.32913437]
[1645906460321,0.00368138,2818.8,2818.3,7.32913437]
[1645906460527,0.00406248,2818.5,2818.3,8.62913437]
[1645906460923,0.00406248,2818.5,2818.4,1.0]
[1645906461125,0.00406248,2818.5,2818.4,2.04156232]
[1645906461328,0.00368138,2818.9,2818.4,3.28352482]
[1645906461526,0.6708576,2819.2,2819.0,1.26986023]
[1645906461730,0.66717622,2819.2,2819.0,1.26986023]
[1645906462726,0.66717622,2819.2,2818.5,1.145]
[1645906462727,0.67121831,2819.2,2818.5,1.145]
[1645906462930,0.66717622,2819.0,2818.4,2.6548]
[1645906463232,0.66717622,2819.0,2818.4,2.3548]
[1645906463663,0.66717622,2819.0,2818.4,1.3548]
[1645906463866,0.66717622,2819.0,2818.7,1.37736567]
[1645906464066,0.00404209,2818.8,2818.4,1.3548]
[1645906464465,0.00404209,2818.8,2818.4,1.0]
[1645906464870,0.66717622,2818.9,2818.4,1.0]
[1645906465271,0.00404209,2818.7,2818.3,8.92913437]
[1645906465470,0.00404209,2818.7,2818.4,1.28148663]
[1645906466072,0.66717622,2819.0,2818.4,1.28148663]
[1645906466272,0.66717622,2818.9,2818.3,9.92913437]
[1645906466571,0.00404523,2818.7,2818.3,9.62913437]
[1645906466975,0.00404523,2818.7,2818.4,1.43010694]
[1645906467173,0.07497771,2818.6,2818.4,1.43010694]
[1645906467431,0.07497771,2818.6,2818.3,9.92913437]
[1645906467621,0.07497771,2818.5,2818.3,9.92913437]
[1645906467823,0.07497771,2818.4,2818.3,9.92913437]
[1645906468022,0.07497771,2818.6,2818.3,11.05927856]
[1645906468222,0.07497771,2818.6,2818.3,11.0560062]
[1645906468724,0.07497771,2818.6,2818.4,1.43011876]
[1645906468923,0.07497771,2818.5,2818.4,1.43011876]
[1645906469131,0.00404523,2818.6,2818.5,9.0]
[1645906469326,0.00404523,2818.6,2818.5,10.8648]
[1645906469527,0.00404523,2818.6,2818.5,11.1648]
[1645906469728,0.00404523,2818.6,2818.5,22.7461]
[1645906469928,0.66717622,2819.5,2819.4,1.16019042]
[1645906470127,0.66717622,2819.6,2819.4,1.16019042]
[1645906470326,0.66717622,2819.5,2819.4,1.16019042]
[1645906470525,0.66717622,2819.5,2818.7,4.4953]
[1645906470726,0.89138861,2819.8,2818.7,1.6548]
[1645906470727,0.66717622,2819.6,2818.7,1.6548]
[1645906470934,0.66717622,2819.6,2818.7,2.54191]
[1645906470935,0.00368358,2819.5,2818.7,2.54191]
[1645906471165,0.00368358,2819.5,2818.7,1.84191]
[1645906471166,0.00121761,2819.2,2818.7,1.84191]
[1645906471380,0.00121761,2819.2,2818.6,5.4781]
[1645906471577,0.00121761,2819.2,2818.5,10.5813]
[1645906471777,0.66717622,2819.0,2818.5,9.5813]
[1645906471976,3.5,2818.9,2818.5,9.5813]
[1645906472175,4.16717622,2818.9,2818.5,9.5813]
[1645906472374,0.66717622,2818.9,2818.5,9.5813]
[1645906472576,0.66839383,2818.9,2818.5,9.5813]
[1645906472777,0.66717622,2818.8,2818.5,9.57889628]
[1645906473585,0.67174482,2818.8,2818.5,9.57889628]
[1645906474382,0.66717622,2818.7,2818.5,9.57889628]
[1645906475718,4.39138861,2818.9,2818.5,9.57889628]
[1645906475719,0.66717622,2818.6,2818.5,9.57889628]
[1645906475920,0.66717622,2818.7,2818.5,9.57889628]
[1645906476127,0.66717622,2818.6,2818.5,9.57889628]
[1645906478126,0.66717622,2818.7,2818.5,8.62100666]
[1645906478526,3.5,2818.6,2818.5,8.62100666]
[1645906478782,1.55882185,2818.7,2818.5,8.62100666]
[1645906479378,1.55487622,2818.7,2818.5,8.62100666]
[1645906479579,3.5,2818.6,2818.5,7.18011137]
[1645906479781,5.74618861,2818.6,2818.5,7.18011137]
[1645906479976,4.9967,2818.6,2818.5,7.18011137]
[1645906480179,5.5067,2818.6,2818.5,7.18011137]
[1645906480978,5.5067,2818.6,2818.5,0.7164364]
[1645906480979,6.84352563,2818.6,2818.5,0.7164364]
[1645906481180,0.3548,2818.2,2817.8,0.25]
[1645906481389,1.02170549,2818.0,2817.0,0.1419]
[1645906481580,3.5,2817.9,2817.0,0.1419]
[1645906481778,3.5,2817.9,2816.9,2.68894885]
[1645906482178,3.5,2817.9,2816.9,3.68894885]
[1645906482429,1.57261823,2818.1,2816.9,3.68894885]
[1645906482430,0.88791,2818.0,2816.9,3.68894885]
[1645906483231,4.68093189,2818.1,2816.9,3.68894885]
[1645906483430,0.0040264,2818.1,2816.9,4.34374885]
[1645906483629,0.0040264,2818.1,2817.0,0.1419]
[1645906483828,0.0040264,2818.1,2817.1,0.3548]
[1645906484228,1.2124,2818.2,2817.6,1.21629147]
[1645906484428,0.67058907,2818.3,2817.6,1.21629147]
[1645906484429,0.00401494,2818.1,2817.6,1.21629147]
[1645906485430,0.00368358,2818.3,2817.6,1.21629147]
[1645906485630,0.0040153,2818.1,2817.6,1.21629147]
[1645906486672,0.00368358,2818.3,2817.6,1.21629147]
[1645906486868,0.0040153,2818.1,2817.6,1.21629147]
[1645906487870,0.67058907,2818.5,2817.6,1.21629147]
[1645906488073,0.00401694,2818.1,2817.6,1.21629147]
[1645906489074,0.67058907,2818.5,2817.6,1.21629147]
[1645906489280,0.00401694,2818.1,2817.7,1.47694658]
[1645906489475,0.07499464,2818.0,2817.7,1.47694658]
[1645906490513,0.67058907,2818.5,2817.8,1.47694658]
[1645906490514,0.07499464,2817.9,2817.8,1.47694658]
[1645906490716,0.02499464,2817.9,2817.8,1.47694658]
[1645906490918,0.00401694,2818.1,2817.3,2.1932]
[1645906491121,0.00401694,2818.1,2817.3,1.4932]
[1645906491319,4.17058907,2818.4,2817.3,1.4932]
[1645906491518,0.66690549,2818.3,2817.3,1.1932]
[1645906491722,0.00401648,2818.1,2817.3,1.1932]
[1645906492623,3.5,2818.2,2817.3,1.1932]
[1645906492826,0.67092197,2818.1,2817.3,1.1932]
[1645906493024,4.16690549,2818.0,2817.3,1.1932]
[1645906493226,0.66690549,2818.0,2816.8,4.3185]
[1645906493862,1.55481549,2818.0,2816.8,4.6185]
[1645906494063,1.55481549,2818.0,2816.9,1.30400701]
[1645906494263,0.88791,2818.0,2816.9,1.30400701]
[1645906494465,1.55481549,2818.0,2816.9,1.30400701]
[1645906494668,0.88791,2818.0,2816.9,1.30400701]
[1645906494869,1.02981,2818.0,2816.9,1.30400701]
[1645906496270,0.1419,2818.0,2816.9,4.80400701]
[1645906496475,0.1419,2818.0,2816.9,5.80400701]
[1645906497071,0.00401619,2818.1,2816.9,5.94590701]
[1645906497522,1.4624,2818.2,2816.9,5.94590701]
[1645906497729,0.00401626,2818.1,2816.9,5.94590701]
[1645906497923,0.00401626,2818.1,2816.9,6.30070701]
[1645906498124,0.00401626,2818.1,2817.4,1.29682052]
[1645906498526,1.4624,2818.2,2817.4,1.29682052]
[1645906498723,1.1624,2818.2,2817.4,1.29682052]
[1645906498925,0.00401665,2818.1,2817.4,1.29682052]
[1645906499726,1.1624,2818.2,2817.4,1.29682052]
[1645906500031,0.00401665,2818.1,2817.4,1.29682052]
[1645906501027,1.1624,2818.2,2817.4,1.29682052]
[1645906501272,0.00401665,2818.1,2817.4,1.29682052]
[1645906501675,0.91641665,2818.2,2817.4,1.29682052]
[1645906503175,1.21641665,2818.2,2817.1,0.1419]
[1645906503376,0.66690549,2818.1,2817.0,2.1899]
[1645906503773,0.66690549,2818.1,2817.0,1.1899]
[1645906504174,0.80880549,2818.1,2817.0,1.1899]
[1645906504573,0.1419,2818.1,2817.0,2.45699743]
[1645906504774,1.02978,2818.1,2817.0,2.45699743]
[1645906505222,0.1419,2818.1,2817.0,5.95699743]
[1645906505616,0.1419,2818.1,2817.0,3.45699743]
[1645906505815,0.1419,2818.1,2817.0,5.95699743]
[1645906506016,0.1419,2818.1,2817.0,6.95699743]
[1645906506516,0.1419,2818.1,2817.1,1.0]
[1645906506915,0.1419,2818.1,2817.0,3.45699743]
[1645906508665,0.1419,2818.1,2817.0,2.45699743]
[1645906508866,0.1419,2818.1,2817.0,3.45699743]
[1645906509084,0.1419,2818.1,2817.0,6.95699743]
[1645906509269,0.1419,2818.1,2817.6,0.96908444]
[1645906509470,0.1419,2818.1,2817.6,0.872176]
[1645906510872,0.0750008,2818.0,2817.6,0.872176]
[1645906514323,0.0750008,2818.0,2817.2,1.30877045]
[1645906514525,0.0750008,2818.0,2817.8,0.872176]
[1645906516470,0.74190629,2818.0,2817.8,0.872176]
[1645906516670,1.09670629,2818.0,2817.8,0.872176]
[1645906516869,0.0750008,2817.9,2817.8,0.872176]
[1645906520523,0.74190629,2817.9,2817.8,0.872176]
[1645906521338,0.74190629,2817.9,2816.9,0.67309873]
[1645906521339,12.06287,2817.7,2816.9,0.67309873]
[1645906521535,11.1748,2817.4,2817.0,1.42335852]
[1645906521733,10.82,2817.1,2816.4,0.97735852]
[1645906521932,10.82,2817.1,2816.3,0.5]
[1645906521933,11.48965157,2816.9,2816.8,0.00453279]
[1645906522128,15.1848,2816.9,2816.8,0.00453279]
[1645906522428,0.0045,2816.8,2815.7,0.67309873]
[1645906522632,0.0045,2816.8,2815.6,0.25]
[1645906522633,0.3548,2816.4,2815.6,0.67309873]
[1645906522831,0.8648,2816.3,2815.6,0.67309873]
[1645906523667,3.5,2816.2,2815.6,0.67309873]
[1645906524871,4.38848,2816.2,2815.5,1.92013828]
[1645906525069,4.38848,2816.2,2815.5,0.67660518]
[1645906525571,4.38848,2816.2,2815.5,0.00350645]
[1645906526570,4.38848,2816.2,2815.7,0.00516443]
[1645906527416,4.38848,2816.2,2815.5,1.32389308]
[1645906527417,4.38848,2816.2,2815.5,0.00350645]
[1645906527618,4.38848,2816.2,2815.8,0.00516429]
[1645906528624,4.68848,2816.2,2815.5,0.00350645]
[1645906528819,4.68848,2816.2,2815.9,0.00516423]
[1645906529020,4.89534969,2816.2,2815.9,0.00516423]
[1645906529820,4.89534969,2816.2,2815.5,0.00350645]
[1645906530222,5.89534969,2816.2,2815.9,0.00516416]
[1645906530426,4.89534969,2816.2,2815.9,0.00516416]
[1645906530628,5.25014969,2816.2,2815.9,0.00516416]
[1645906531025,5.25014969,2816.2,2815.5,0.00350645]
[1645906531281,5.25014969,2816.2,2815.9,0.00516416]
[1645906532278,5.25014969,2816.2,2815.5,0.00350645]
[1645906532480,5.25014969,2816.2,2815.9,0.00516416]
[1645906532481,1.18848,2816.2,2815.9,0.00516416]
[1645906532681,0.3,2816.2,2815.9,0.00516416]
[1645906532883,2.2519,2816.3,2815.9,0.00516416]
[1645906533081,0.6519,2816.3,2815.9,0.00516416]
[1645906533282,4.56700399,2816.6,2815.9,0.00516416]
[1645906533283,0.06700399,2816.6,2815.9,0.00516416]
[1645906533488,3.1733,2816.8,2815.8,1.49408202]
[1645906533689,3.1733,2816.8,2815.8,1.79408202]
[1645906533892,3.6419,2817.1,2816.0,0.0051641]
[1645906533893,3.5,2817.1,2816.0,0.0051641]
[1645906534082,4.2567,2817.2,2816.0,0.0051641]
[1645906534286,1.1957,2817.2,2816.4,1.15205001]
[1645906534487,6.7231,2817.4,2816.4,1.50685001]
[1645906534688,3.0812,2817.4,2816.4,1.50685001]
[1645906534936,3.0812,2817.4,2816.7,0.00516317]
[1645906535927,3.07174061,2817.4,2816.4,1.50685001]
[1645906536128,3.07174061,2817.4,2816.7,0.0051633]
[1645906537140,3.07174061,2817.4,2816.4,1.50685001]
[1645906537328,3.07174061,2817.4,2816.7,0.0051633]
[1645906538233,3.07174061,2817.4,2816.4,1.50685001]
[1645906538667,3.07174061,2817.4,2816.7,0.0051633]
[1645906539470,3.07174061,2817.4,2816.4,1.50685001]
[1645906539672,3.07174061,2817.4,2816.4,1.15205001]
[1645906539870,0.8881,2817.3,2816.7,0.0051633]
[1645906540667,0.8881,2817.3,2815.9,10.48009873]
[1645906540870,0.8881,2817.3,2816.0,0.3548]
[1645906541069,0.8881,2817.3,2816.7,0.00516328]
[1645906541870,0.15458753,2817.2,2816.0,0.3548]
[1645906542070,3.65458753,2817.2,2816.7,0.00516328]
[1645906542428,0.10458753,2817.1,2816.7,0.00516328]
[1645906542629,0.8881,2817.3,2816.7,0.00516328]
[1645906543029,0.8881,2817.3,2816.1,0.6548]
[1645906543230,0.8881,2817.3,2816.1,0.6048]
[1645906543429,1.03,2817.3,2816.7,0.00516328]
[1645906543831,1.33,2817.3,2816.7,0.00516328]
[1645906544131,4.38822,2817.2,2816.7,0.0040912]
[1645906544336,0.88824,2816.9,2815.9,8.807]
[1645906544532,0.88824,2816.9,2815.9,4.5727]
[1645906545830,0.88824,2816.9,2816.3,0.0051637]
[1645906546678,0.88824,2816.9,2815.9,5.8501181]
[1645906547077,0.88824,2816.9,2816.5,0.00516344]
[1645906547883,0.88824,2816.9,2815.9,5.8501181]
[1645906548084,0.88824,2816.9,2816.6,0.00516331]
[1645906548286,1.03014,2816.9,2816.6,0.00516331]
[1645906548483,0.88824,2816.9,2816.6,0.00516331]
[1645906549183,0.88824,2816.9,2815.9,5.8501181]
[1645906549388,0.88824,2816.9,2816.6,0.00516324]
[1645906549785,0.1419,2817.0,2816.6,0.00516324]
[1645906550431,0.1419,2817.0,2815.9,5.8501181]
[1645906550631,3.6419,2817.0,2816.6,0.00516327]
[1645906550831,0.1419,2817.0,2816.6,0.00516327]